[Event "Early-Titled-Tuesday-Blitz-May-28-2024"]
[Site "Chess.com"]
[Date "2024.05.28"]
[Round "1"]
[White "Mackster23"]
[Black "Milop27"]
[Result "0-1"]
[WhiteElo "2676"]
[BlackElo "2436"]
[TimeControl "180+1"]
[EndTime "8:07:33 PDT"]
[Termination "Milop27 won by resignation"]

1. e4 {[%clk 0:03:00.9]} 1... c5 {[%clk 0:02:59.4]} 2. Nf3 {[%clk 0:03:00.8]}
2... e6 {[%clk 0:02:59.5]} 3. d4 {[%clk 0:03:00.8]} 3... cxd4 {[%clk 0:02:59.7]}
4. Nxd4 {[%clk 0:03:01.7]} 4... a6 {[%clk 0:02:59.7]} 5. Bd3 {[%clk 0:03:01.2]}
5... Qb6 {[%clk 0:02:58.8]} 6. Nb3 {[%clk 0:02:57]} 6... Qc7 {[%clk 0:02:58.5]}
7. O-O {[%clk 0:02:54.6]} 7... d6 {[%clk 0:02:56.6]} 8. c4 {[%clk 0:02:52.8]}
8... Nf6 {[%clk 0:02:56.1]} 9. Nc3 {[%clk 0:02:51.8]} 9... Be7 {[%clk
0:02:56.1]} 10. Be3 {[%clk 0:02:49.1]} 10... O-O {[%clk 0:02:56.2]} 11. Nd2
{[%clk 0:02:47.1]} 11... Nbd7 {[%clk 0:02:55.2]} 12. f4 {[%clk 0:02:39.9]} 12...
b6 {[%clk 0:02:54.6]} 13. b4 {[%clk 0:02:39.2]} 13... Bb7 {[%clk 0:02:51.4]} 14.
Qe2 {[%clk 0:02:36.4]} 14... b5 {[%clk 0:02:43.6]} 15. Rac1 {[%clk 0:02:34.1]}
15... bxc4 {[%clk 0:02:42.9]} 16. Nxc4 {[%clk 0:02:32.5]} 16... Rfc8 {[%clk
0:02:37.5]} 17. Na5 {[%clk 0:02:30.4]} 17... Qb8 {[%clk 0:02:31.3]} 18. a3
{[%clk 0:02:25]} 18... Bd8 {[%clk 0:02:14.4]} 19. Nxb7 {[%clk 0:02:05.2]} 19...
Qxb7 {[%clk 0:02:13.8]} 20. h3 {[%clk 0:02:00.7]} 20... Bb6 {[%clk 0:02:11.8]}
21. Kh2 {[%clk 0:01:59.1]} 21... Bxe3 {[%clk 0:02:09.3]} 22. Qxe3 {[%clk
0:02:00]} 22... Rc7 {[%clk 0:02:07.4]} 23. Qd4 {[%clk 0:01:56.3]} 23... Rac8
{[%clk 0:01:56.5]} 24. Ne2 {[%clk 0:01:34.1]} 24... Rxc1 {[%clk 0:01:48.5]} 25.
Rxc1 {[%clk 0:01:35]} 25... Rxc1 {[%clk 0:01:45.7]} 26. Nxc1 {[%clk 0:01:35.9]}
26... Qc6 {[%clk 0:01:43.2]} 27. Nb3 {[%clk 0:01:33.5]} 27... e5 {[%clk
0:01:41.6]} 28. fxe5 {[%clk 0:01:30.3]} 28... Nxe5 {[%clk 0:01:39.9]} 29. Na5
{[%clk 0:01:27.2]} 29... Qc1 {[%clk 0:01:33.4]} 30. Bxa6 {[%clk 0:01:04.1]}
30... Qf4+ {[%clk 0:01:27.1]} 31. Kg1 {[%clk 0:01:02.7]} 31... Qc1+ {[%clk
0:01:16]} 32. Bf1 {[%clk 0:01:01]} 32... Qg5 {[%clk 0:00:51.6]} 33. Qc3 {[%clk
0:00:31.5]} 33... g6 {[%clk 0:00:46.6]} 34. Nc4 {[%clk 0:00:12.1]} 34... Nxe4
{[%clk 0:00:40.6]} 35. Qb3 {[%clk 0:00:12.4]} 35... Qf4 {[%clk 0:00:18.8]} 36.
Nxe5 {[%clk 0:00:08.1]} 36... dxe5 {[%clk 0:00:13.1]} 37. Qf3 {[%clk 0:00:05.7]}
37... Qh4 {[%clk 0:00:12]} 38. Bd3 {[%clk 0:00:04.5]} 38... Nd2 {[%clk
0:00:10.2]} 39. Kh2 {[%clk 0:00:02.6]} 39... Nxf3+ {[%clk 0:00:08.8]} 40. gxf3
{[%clk 0:00:01.9]} 40... Qf2+ {[%clk 0:00:08.8]} 41. Kh1 {[%clk 0:00:02.3]}
41... Qxf3+ {[%clk 0:00:09]} 42. Kh2 {[%clk 0:00:03.2]} 42... Qxd3 {[%clk
0:00:08.8]} 0-1

[Event "Early-Titled-Tuesday-Blitz-May-28-2024"]
[Site "Chess.com"]
[Date "2024.05.28"]
[Round "1"]
[White "rhwr"]
[Black "alreadybroken23"]
[Result "0-1"]
[WhiteElo "2301"]
[BlackElo "2616"]
[TimeControl "180+1"]
[EndTime "8:07:34 PDT"]
[Termination "alreadybroken23 won by resignation"]

1. e4 {[%clk 0:03:00.9]} 1... Nf6 {[%clk 0:02:58.2]} 2. e5 {[%clk 0:02:58.2]}
2... Nd5 {[%clk 0:02:58.4]} 3. d4 {[%clk 0:02:53.6]} 3... d6 {[%clk 0:02:58.3]}
4. Nf3 {[%clk 0:02:51.7]} 4... g6 {[%clk 0:02:58.3]} 5. exd6 {[%clk 0:02:51]}
5... cxd6 {[%clk 0:02:58.6]} 6. h3 {[%clk 0:02:50.7]} 6... Bg7 {[%clk
0:02:58.8]} 7. Be2 {[%clk 0:02:49.4]} 7... O-O {[%clk 0:02:58.4]} 8. O-O {[%clk
0:02:49.1]} 8... Nc6 {[%clk 0:02:57.5]} 9. Re1 {[%clk 0:02:48.1]} 9... e5 {[%clk
0:02:55.9]} 10. c3 {[%clk 0:02:44.3]} 10... exd4 {[%clk 0:02:54]} 11. cxd4
{[%clk 0:02:44]} 11... Re8 {[%clk 0:02:52.4]} 12. Nc3 {[%clk 0:02:42.9]} 12...
Nf6 {[%clk 0:02:51.2]} 13. Bg5 {[%clk 0:02:41.5]} 13... h6 {[%clk 0:02:50.7]}
14. Bh4 {[%clk 0:02:39]} 14... g5 {[%clk 0:02:50]} 15. Bg3 {[%clk 0:02:38.7]}
15... d5 {[%clk 0:02:38.7]} 16. Bd3 {[%clk 0:02:25.8]} 16... Rxe1+ {[%clk
0:02:33.4]} 17. Qxe1 {[%clk 0:02:24.8]} 17... Be6 {[%clk 0:02:30.7]} 18. Rc1
{[%clk 0:01:58.8]} 18... Qb6 {[%clk 0:02:29.9]} 19. Nb5 {[%clk 0:01:56.6]} 19...
Ne4 {[%clk 0:02:24.6]} 20. Bc7 {[%clk 0:01:54.7]} 20... Qa6 {[%clk 0:02:18.8]}
21. a3 {[%clk 0:01:47]} 21... Rc8 {[%clk 0:01:20.3]} 22. Bf1 {[%clk 0:01:29.2]}
22... Qa4 {[%clk 0:01:08]} 23. Bh2 {[%clk 0:01:12.1]} 23... a6 {[%clk
0:00:45.4]} 24. Nc3 {[%clk 0:00:55.7]} 24... Nxc3 {[%clk 0:00:45]} 25. bxc3
{[%clk 0:00:55.6]} 25... Qxa3 {[%clk 0:00:43.1]} 26. Ra1 {[%clk 0:00:42.4]}
26... Qe7 {[%clk 0:00:39.9]} 27. Qd2 {[%clk 0:00:29.8]} 27... Qd8 {[%clk
0:00:30.9]} 28. Re1 {[%clk 0:00:28.3]} 28... Na5 {[%clk 0:00:30.4]} 29. Ne5
{[%clk 0:00:26.6]} 29... Nc4 {[%clk 0:00:30.3]} 30. Nxc4 {[%clk 0:00:22.3]}
30... dxc4 {[%clk 0:00:31.2]} 31. Be2 {[%clk 0:00:20.2]} 31... b5 {[%clk
0:00:31]} 32. Bf3 {[%clk 0:00:19.9]} 32... b4 {[%clk 0:00:31.1]} 33. Bb7 {[%clk
0:00:19.8]} 33... bxc3 {[%clk 0:00:27]} 34. Qxc3 {[%clk 0:00:18.5]} 34... Bxd4
{[%clk 0:00:27.6]} 35. Qf3 {[%clk 0:00:13.8]} 35... Rc5 {[%clk 0:00:24.7]} 36.
Bxa6 {[%clk 0:00:13.5]} 36... Rf5 {[%clk 0:00:23.8]} 37. Qe4 {[%clk 0:00:09.4]}
37... Bxf2+ {[%clk 0:00:23.2]} 38. Kh1 {[%clk 0:00:10.3]} 38... Bxe1 {[%clk
0:00:23.1]} 39. Qxe1 {[%clk 0:00:10.5]} 39... Rd5 {[%clk 0:00:22.8]} 40. Bg1
{[%clk 0:00:09.7]} 40... Rd1 {[%clk 0:00:22]} 41. Qe3 {[%clk 0:00:08.8]} 41...
Qd5 {[%clk 0:00:19.7]} 42. Kh2 {[%clk 0:00:05.2]} 42... Qd6+ {[%clk 0:00:19]}
43. Kh1 {[%clk 0:00:04.1]} 43... Rd3 {[%clk 0:00:18.7]} 44. Qb6 {[%clk
0:00:02.8]} 0-1

[Event "Early-Titled-Tuesday-Blitz-May-28-2024"]
[Site "Chess.com"]
[Date "2024.05.28"]
[Round "1"]
[White "gpsji27"]
[Black "Matsanovic"]
[Result "0-1"]
[WhiteElo "2300"]
[BlackElo "2614"]
[TimeControl "180+1"]
[EndTime "8:07:36 PDT"]
[Termination "Matsanovic won by resignation"]

1. d4 {[%clk 0:03:00.7]} 1... Nf6 {[%clk 0:02:59.6]} 2. Nf3 {[%clk 0:02:57.4]}
2... d5 {[%clk 0:02:59.1]} 3. Bg5 {[%clk 0:02:56.6]} 3... Bf5 {[%clk 0:02:55.7]}
4. e3 {[%clk 0:02:54.7]} 4... c6 {[%clk 0:02:53.5]} 5. Nbd2 {[%clk 0:02:54.2]}
5... e6 {[%clk 0:02:53.2]} 6. Bd3 {[%clk 0:02:54.1]} 6... Bg6 {[%clk 0:02:52.3]}
7. O-O {[%clk 0:02:52.4]} 7... Nbd7 {[%clk 0:02:51.9]} 8. Ne5 {[%clk 0:02:50.9]}
8... Be7 {[%clk 0:02:47.1]} 9. f4 {[%clk 0:02:33.4]} 9... Nxe5 {[%clk
0:02:40.9]} 10. fxe5 {[%clk 0:02:30.9]} 10... Nd7 {[%clk 0:02:40.5]} 11. Bxe7
{[%clk 0:02:30.2]} 11... Qxe7 {[%clk 0:02:41.1]} 12. Nf3 {[%clk 0:02:28.4]}
12... O-O {[%clk 0:02:34.7]} 13. c3 {[%clk 0:02:20.7]} 13... c5 {[%clk
0:02:33.9]} 14. Qe2 {[%clk 0:02:16.5]} 14... c4 {[%clk 0:02:30.7]} 15. Bxg6
{[%clk 0:02:13.6]} 15... fxg6 {[%clk 0:02:29.4]} 16. e4 {[%clk 0:02:14.5]} 16...
dxe4 {[%clk 0:02:15.6]} 17. Qxe4 {[%clk 0:02:15.4]} 17... Nb6 {[%clk 0:02:15.9]}
18. Rae1 {[%clk 0:02:01]} 18... Nd5 {[%clk 0:02:14.3]} 19. Nd2 {[%clk
0:01:58.8]} 19... b5 {[%clk 0:02:11.9]} 20. a4 {[%clk 0:01:54.4]} 20... a6
{[%clk 0:02:11.3]} 21. Qc2 {[%clk 0:01:29.5]} 21... Rxf1+ {[%clk 0:02:04.4]} 22.
Nxf1 {[%clk 0:01:30.4]} 22... Qh4 {[%clk 0:01:58.7]} 23. g3 {[%clk 0:01:27]}
23... Qg5 {[%clk 0:01:55]} 24. b3 {[%clk 0:01:24.6]} 24... Rc8 {[%clk
0:01:50.6]} 25. axb5 {[%clk 0:01:21]} 25... axb5 {[%clk 0:01:51.5]} 26. b4
{[%clk 0:01:13.6]} 26... Rf8 {[%clk 0:01:49.5]} 27. Qa2 {[%clk 0:01:08]} 27...
h5 {[%clk 0:01:45.3]} 28. Qa6 {[%clk 0:01:06.7]} 28... Qf5 {[%clk 0:01:43.3]}
29. Qa2 {[%clk 0:00:48.6]} 29... Nxc3 {[%clk 0:01:40.2]} 30. Qd2 {[%clk
0:00:47.7]} 30... Nd5 {[%clk 0:01:33.4]} 31. Ne3 {[%clk 0:00:45.4]} 31... Qf3
{[%clk 0:01:26.4]} 32. Nxd5 {[%clk 0:00:41.6]} 32... Qxd5 {[%clk 0:01:27.3]} 33.
Rd1 {[%clk 0:00:36.8]} 33... Rf3 {[%clk 0:01:20.7]} 34. Qg2 {[%clk 0:00:34.7]}
34... c3 {[%clk 0:01:12.4]} 35. Qc2 {[%clk 0:00:30.7]} 35... Kh7 {[%clk
0:01:09.2]} 36. Qe2 {[%clk 0:00:08]} 36... Rf8 {[%clk 0:00:46.7]} 37. Qd3 {[%clk
0:00:06]} 37... Rf3 {[%clk 0:00:42.3]} 38. Qe2 {[%clk 0:00:05.9]} 38... h4
{[%clk 0:00:40.2]} 39. gxh4 {[%clk 0:00:04.6]} 39... Rf4 {[%clk 0:00:40.4]} 40.
Qd3 {[%clk 0:00:03.7]} 40... Rg4+ {[%clk 0:00:37.8]} 41. Kf2 {[%clk 0:00:03.3]}
41... Qg2+ {[%clk 0:00:33.3]} 42. Ke3 {[%clk 0:00:03.6]} 42... Rxh4 {[%clk
0:00:22.7]} 43. Qe4 {[%clk 0:00:01.4]} 0-1

[Event "Early-Titled-Tuesday-Blitz-May-28-2024"]
[Site "Chess.com"]
[Date "2024.05.28"]
[Round "1"]
[White "bazar-wokzal"]
[Black "BarloNadera"]
[Result "1-0"]
[WhiteElo "2568"]
[BlackElo "2050"]
[TimeControl "180+1"]
[EndTime "8:07:36 PDT"]
[Termination "bazar-wokzal won by checkmate"]

1. e4 {[%clk 0:02:56.3]} 1... e6 {[%clk 0:02:59.5]} 2. d4 {[%clk 0:02:55.5]}
2... d5 {[%clk 0:02:59.4]} 3. e5 {[%clk 0:02:55.7]} 3... c5 {[%clk 0:02:58.6]}
4. c3 {[%clk 0:02:55.9]} 4... Nc6 {[%clk 0:02:58]} 5. Nf3 {[%clk 0:02:56.3]}
5... Qb6 {[%clk 0:02:57.4]} 6. Be2 {[%clk 0:02:56.1]} 6... Bd7 {[%clk
0:02:55.3]} 7. O-O {[%clk 0:02:55.5]} 7... h6 {[%clk 0:02:52.3]} 8. Re1 {[%clk
0:02:33.8]} 8... a6 {[%clk 0:02:49.4]} 9. dxc5 {[%clk 0:02:23.8]} 9... Bxc5
{[%clk 0:02:48.2]} 10. Rf1 {[%clk 0:02:23.1]} 10... a5 {[%clk 0:02:44.5]} 11.
Nbd2 {[%clk 0:02:22]} 11... a4 {[%clk 0:02:37.3]} 12. b4 {[%clk 0:02:21.7]}
12... axb3 {[%clk 0:02:35.4]} 13. Nxb3 {[%clk 0:02:22]} 13... Be7 {[%clk
0:02:31.9]} 14. Be3 {[%clk 0:02:17.4]} 14... Qc7 {[%clk 0:02:31.7]} 15. Bd4
{[%clk 0:02:17.7]} 15... h5 {[%clk 0:02:25.4]} 16. a4 {[%clk 0:02:16.6]} 16...
Nh6 {[%clk 0:02:21.6]} 17. h3 {[%clk 0:02:16.1]} 17... Nf5 {[%clk 0:02:20.8]}
18. Bd3 {[%clk 0:02:15.9]} 18... g6 {[%clk 0:02:14.3]} 19. Qd2 {[%clk
0:02:09.2]} 19... Kf8 {[%clk 0:02:04.1]} 20. Rfe1 {[%clk 0:02:01.3]} 20... Ncxd4
{[%clk 0:01:55.3]} 21. Nbxd4 {[%clk 0:01:52]} 21... Nxd4 {[%clk 0:01:41.8]} 22.
cxd4 {[%clk 0:01:43.9]} 22... Rxa4 {[%clk 0:01:40.3]} 23. Rac1 {[%clk
0:01:36.4]} 23... Qd8 {[%clk 0:01:37.3]} 24. Rb1 {[%clk 0:01:30.1]} 24... Bc6
{[%clk 0:01:35.3]} 25. Bb5 {[%clk 0:01:27.7]} 25... Kg7 {[%clk 0:01:32.9]} 26.
Bxa4 {[%clk 0:01:25.6]} 26... Bxa4 {[%clk 0:01:31.2]} 27. Rxb7 {[%clk
0:01:24.8]} 27... Bc6 {[%clk 0:01:28]} 28. Ra7 {[%clk 0:01:20.4]} 28... Re8
{[%clk 0:01:27.5]} 29. Rea1 {[%clk 0:01:15.1]} 29... Qb6 {[%clk 0:01:23.9]} 30.
Qa5 {[%clk 0:01:10.9]} 30... Qb2 {[%clk 0:01:18.4]} 31. Qc7 {[%clk 0:01:02.7]}
31... Bb5 {[%clk 0:01:14.3]} 32. Qb7 {[%clk 0:00:52]} 32... Qe2 {[%clk
0:01:13.5]} 33. Rb1 {[%clk 0:00:41.2]} 33... Bd3 {[%clk 0:01:08.8]} 34. Re1
{[%clk 0:00:39.9]} 34... Qc2 {[%clk 0:01:04.5]} 35. Qd7 {[%clk 0:00:30.2]} 35...
Kf8 {[%clk 0:01:04.4]} 36. Ng5 {[%clk 0:00:25]} 36... Qd2 {[%clk 0:01:03.3]} 37.
Nh7+ {[%clk 0:00:19.9]} 37... Kg7 {[%clk 0:01:02.8]} 38. Rea1 {[%clk 0:00:17.4]}
38... Rh8 {[%clk 0:00:20.5]} 39. Qxe7 {[%clk 0:00:16]} 39... Rxh7 {[%clk
0:00:20.5]} 40. Qxf7+ {[%clk 0:00:15.9]} 40... Kh6 {[%clk 0:00:20.5]} 41. Qxh7+
{[%clk 0:00:15.6]} 41... Kg5 {[%clk 0:00:20.7]} 42. Qe7+ {[%clk 0:00:15.6]}
42... Kh6 {[%clk 0:00:19.7]} 43. Qf8+ {[%clk 0:00:15.6]} 43... Kg5 {[%clk
0:00:19]} 44. f4+ {[%clk 0:00:14]} 44... Kh4 {[%clk 0:00:17.1]} 45. Qf6+ {[%clk
0:00:13]} 45... Kg3 {[%clk 0:00:17.1]} 46. Qg5# {[%clk 0:00:13.6]} 1-0

[Event "Early-Titled-Tuesday-Blitz-May-28-2024"]
[Site "Chess.com"]
[Date "2024.05.28"]
[Round "1"]
[White "ckgchess"]
[Black "kuchma777"]
[Result "1-0"]
[WhiteElo "2901"]
[BlackElo "2502"]
[TimeControl "180+1"]
[EndTime "8:07:39 PDT"]
[Termination "ckgchess won on time"]

1. e4 {[%clk 0:03:00.9]} 1... c6 {[%clk 0:02:57.9]} 2. d4 {[%clk 0:03:00.7]}
2... d5 {[%clk 0:02:55.9]} 3. e5 {[%clk 0:03:01.2]} 3... c5 {[%clk 0:02:56.1]}
4. dxc5 {[%clk 0:03:00.9]} 4... e6 {[%clk 0:02:56.1]} 5. Be3 {[%clk 0:03:01.2]}
5... Nd7 {[%clk 0:02:55.5]} 6. Bb5 {[%clk 0:03:00.4]} 6... Ne7 {[%clk
0:02:56.1]} 7. Bd4 {[%clk 0:03:00]} 7... Nc6 {[%clk 0:02:55.8]} 8. Bxc6 {[%clk
0:02:59]} 8... bxc6 {[%clk 0:02:56.7]} 9. b4 {[%clk 0:02:59.5]} 9... a5 {[%clk
0:02:56.4]} 10. a3 {[%clk 0:02:59.9]} 10... Ba6 {[%clk 0:02:56.9]} 11. Nf3
{[%clk 0:02:38.2]} 11... Be7 {[%clk 0:02:55.5]} 12. Nc3 {[%clk 0:02:25.7]} 12...
O-O {[%clk 0:02:51.4]} 13. Ne2 {[%clk 0:02:07.2]} 13... Qb8 {[%clk 0:01:42.1]}
14. c3 {[%clk 0:01:40.8]} 14... f6 {[%clk 0:01:27.1]} 15. exf6 {[%clk
0:01:40.7]} 15... Bxf6 {[%clk 0:01:24.8]} 16. Bxf6 {[%clk 0:01:37.6]} 16... Rxf6
{[%clk 0:01:25.7]} 17. O-O {[%clk 0:01:35.5]} 17... e5 {[%clk 0:01:25.9]} 18.
Qd2 {[%clk 0:01:12.5]} 18... e4 {[%clk 0:01:19.4]} 19. Nfd4 {[%clk 0:01:12.5]}
19... Ne5 {[%clk 0:01:19.7]} 20. h3 {[%clk 0:01:01.2]} 20... Qf8 {[%clk
0:00:59.8]} 21. Ra2 {[%clk 0:00:52.9]} 21... Re8 {[%clk 0:00:52.2]} 22. a4
{[%clk 0:00:34.4]} 22... Bc4 {[%clk 0:00:47.4]} 23. Rb2 {[%clk 0:00:33.5]} 23...
Nd3 {[%clk 0:00:47.6]} 24. Rbb1 {[%clk 0:00:11.4]} 24... Nxf2 {[%clk 0:00:29.4]}
25. Qe3 {[%clk 0:00:11]} 25... Nd3 {[%clk 0:00:15.8]} 26. Rxf6 {[%clk
0:00:11.6]} 26... Qxf6 {[%clk 0:00:16.1]} 27. Rf1 {[%clk 0:00:12.5]} 27... Qg6
{[%clk 0:00:15.7]} 28. b5 {[%clk 0:00:09.8]} 28... cxb5 {[%clk 0:00:13.3]} 29.
axb5 {[%clk 0:00:10.7]} 29... Nxc5 {[%clk 0:00:13.7]} 30. Nf4 {[%clk 0:00:08]}
30... Qd6 {[%clk 0:00:10.9]} 31. Rb1 {[%clk 0:00:07.9]} 31... a4 {[%clk
0:00:10.6]} 32. Qc1 {[%clk 0:00:05.1]} 32... Nb3 {[%clk 0:00:09.5]} 33. Nxb3
{[%clk 0:00:03.4]} 33... axb3 {[%clk 0:00:10.4]} 34. Qe3 {[%clk 0:00:02]} 34...
Qa3 {[%clk 0:00:08.9]} 35. Ne2 {[%clk 0:00:01.3]} 35... Qa2 {[%clk 0:00:09.2]}
36. Re1 {[%clk 0:00:01.2]} 36... b2 {[%clk 0:00:09]} 37. Kh2 {[%clk 0:00:01.6]}
37... b1=Q {[%clk 0:00:09.3]} 38. Rxb1 {[%clk 0:00:02.4]} 38... Qxb1 {[%clk
0:00:10.1]} 39. Nd4 {[%clk 0:00:03.3]} 39... Qd3 {[%clk 0:00:09.8]} 40. Qg5
{[%clk 0:00:02.8]} 40... Rf8 {[%clk 0:00:01.9]} 41. Ne6 {[%clk 0:00:02.8]} 41...
Rf7 {[%clk 0:00:02.1]} 42. Qd8+ {[%clk 0:00:03.1]} 1-0

[Event "Early-Titled-Tuesday-Blitz-May-28-2024"]
[Site "Chess.com"]
[Date "2024.05.28"]
[Round "1"]
[White "LLariMarc"]
[Black "eagleclaw07"]
[Result "1-0"]
[WhiteElo "2488"]
[BlackElo "2826"]
[TimeControl "180+1"]
[EndTime "8:07:40 PDT"]
[Termination "LLariMarc won by resignation"]

1. d4 {[%clk 0:03:00.9]} 1... Nf6 {[%clk 0:02:58.4]} 2. Nf3 {[%clk 0:02:58.6]}
2... g6 {[%clk 0:02:58.3]} 3. Bf4 {[%clk 0:02:51.5]} 3... Bg7 {[%clk 0:02:58.5]}
4. e3 {[%clk 0:02:49.8]} 4... O-O {[%clk 0:02:58.5]} 5. c3 {[%clk 0:02:50.3]}
5... d6 {[%clk 0:02:58.5]} 6. Nbd2 {[%clk 0:02:50.2]} 6... Nbd7 {[%clk
0:02:58.6]} 7. Be2 {[%clk 0:02:49.5]} 7... Qe8 {[%clk 0:02:58.1]} 8. O-O {[%clk
0:02:49.8]} 8... e5 {[%clk 0:02:58.4]} 9. Bg3 {[%clk 0:02:48.8]} 9... h6 {[%clk
0:02:50.4]} 10. h3 {[%clk 0:02:47.7]} 10... Nh5 {[%clk 0:02:47.6]} 11. Bh2
{[%clk 0:02:47.2]} 11... f5 {[%clk 0:02:47.8]} 12. Ne1 {[%clk 0:02:43.6]} 12...
Nhf6 {[%clk 0:02:47.3]} 13. Nc4 {[%clk 0:02:40.2]} 13... g5 {[%clk 0:02:44.3]}
14. Kh1 {[%clk 0:01:54.1]} 14... e4 {[%clk 0:02:22.7]} 15. a4 {[%clk 0:01:52.9]}
15... a5 {[%clk 0:02:19]} 16. Nc2 {[%clk 0:01:51.7]} 16... b6 {[%clk 0:02:10.2]}
17. N2a3 {[%clk 0:01:51.4]} 17... Ba6 {[%clk 0:01:28.4]} 18. b4 {[%clk
0:01:46.8]} 18... Kh8 {[%clk 0:01:24.7]} 19. bxa5 {[%clk 0:01:44.9]} 19... bxa5
{[%clk 0:01:25.6]} 20. Nb5 {[%clk 0:01:44.8]} 20... Qd8 {[%clk 0:01:17.9]} 21.
Nxa5 {[%clk 0:01:40.4]} 21... Nb6 {[%clk 0:01:15]} 22. Nc6 {[%clk 0:01:38.3]}
22... Qd7 {[%clk 0:01:14.3]} 23. Nb4 {[%clk 0:01:38.4]} 23... Bb7 {[%clk
0:01:14.2]} 24. a5 {[%clk 0:01:36.5]} 24... Nbd5 {[%clk 0:01:14.6]} 25. a6
{[%clk 0:01:16.9]} 25... Bc6 {[%clk 0:01:14.5]} 26. Nxc6 {[%clk 0:01:15.2]}
26... Qxc6 {[%clk 0:01:14.7]} 27. c4 {[%clk 0:01:13.6]} 27... Nb6 {[%clk
0:01:09.6]} 28. Qb3 {[%clk 0:01:06.6]} 28... f4 {[%clk 0:00:58]} 29. exf4 {[%clk
0:00:55.8]} 29... gxf4 {[%clk 0:00:56.5]} 30. Bxf4 {[%clk 0:00:54.9]} 30... d5
{[%clk 0:00:50.3]} 31. c5 {[%clk 0:00:36.2]} 31... Nc4 {[%clk 0:00:40.5]} 32.
Nxc7 {[%clk 0:00:23.8]} 32... Ra7 {[%clk 0:00:28.1]} 33. Nb5 {[%clk 0:00:10.4]}
33... Rxa6 {[%clk 0:00:26.9]} 34. Rxa6 {[%clk 0:00:10.8]} 34... Qxa6 {[%clk
0:00:27.8]} 35. Nd6 {[%clk 0:00:11.5]} 35... Nh5 {[%clk 0:00:14.6]} 36. Be3
{[%clk 0:00:11.9]} 36... Nf4 {[%clk 0:00:11.6]} 37. Bxf4 {[%clk 0:00:11.4]}
37... Rxf4 {[%clk 0:00:12.5]} 38. Nxc4 {[%clk 0:00:11.9]} 38... dxc4 {[%clk
0:00:12.6]} 39. Qxc4 {[%clk 0:00:12.3]} 39... Qf6 {[%clk 0:00:12.4]} 40. c6
{[%clk 0:00:10.9]} 40... Qd8 {[%clk 0:00:02.5]} 41. c7 {[%clk 0:00:11.3]} 41...
Qc8 {[%clk 0:00:03.2]} 42. Bg4 {[%clk 0:00:11.3]} 42... Rxg4 {[%clk 0:00:03.3]}
43. hxg4 {[%clk 0:00:12.2]} 43... Bf6 {[%clk 0:00:02.6]} 44. d5 {[%clk
0:00:12.5]} 44... Kg7 {[%clk 0:00:03.1]} 45. d6 {[%clk 0:00:12.9]} 45... Qxg4
{[%clk 0:00:03.5]} 46. c8=Q {[%clk 0:00:12.6]} 46... Qh4+ {[%clk 0:00:03.6]} 47.
Qh3 {[%clk 0:00:12.9]} 1-0

[Event "Early-Titled-Tuesday-Blitz-May-28-2024"]
[Site "Chess.com"]
[Date "2024.05.28"]
[Round "1"]
[White "Statham_01"]
[Black "Shivananda1964"]
[Result "1-0"]
[WhiteElo "2734"]
[BlackElo "2411"]
[TimeControl "180+1"]
[EndTime "8:07:40 PDT"]
[Termination "Statham_01 won on time"]

1. e4 {[%clk 0:03:00.9]} 1... Nc6 {[%clk 0:02:58.3]} 2. Nf3 {[%clk 0:02:59.8]}
2... e5 {[%clk 0:02:57.6]} 3. c3 {[%clk 0:02:59.2]} 3... d6 {[%clk 0:02:48.3]}
4. d4 {[%clk 0:02:59.1]} 4... Bg4 {[%clk 0:02:35.8]} 5. Bb5 {[%clk 0:02:46.4]}
5... a6 {[%clk 0:02:27.1]} 6. Bxc6+ {[%clk 0:02:35]} 6... bxc6 {[%clk 0:02:27]}
7. dxe5 {[%clk 0:02:34.9]} 7... Bxf3 {[%clk 0:01:52.4]} 8. Qxf3 {[%clk
0:02:35.8]} 8... dxe5 {[%clk 0:01:52.7]} 9. O-O {[%clk 0:02:28.8]} 9... Bd6
{[%clk 0:01:45.8]} 10. Nd2 {[%clk 0:02:20.2]} 10... Ne7 {[%clk 0:01:42]} 11. Nc4
{[%clk 0:02:20.2]} 11... Ng6 {[%clk 0:01:41.6]} 12. Be3 {[%clk 0:02:11.5]} 12...
O-O {[%clk 0:01:40.4]} 13. Rad1 {[%clk 0:02:09.4]} 13... Qe7 {[%clk 0:01:39.4]}
14. Na5 {[%clk 0:01:54]} 14... Qe6 {[%clk 0:01:08.5]} 15. Qf5 {[%clk 0:01:28.1]}
15... Qxa2 {[%clk 0:01:01.6]} 16. b4 {[%clk 0:01:17.3]} 16... Ne7 {[%clk
0:00:42.4]} 17. Qf3 {[%clk 0:01:15.4]} 17... Qe6 {[%clk 0:00:39.7]} 18. Rd2
{[%clk 0:01:09.8]} 18... f5 {[%clk 0:00:39.5]} 19. exf5 {[%clk 0:01:02.6]} 19...
Rxf5 {[%clk 0:00:35.9]} 20. Qe4 {[%clk 0:01:00.9]} 20... Nd5 {[%clk 0:00:20.7]}
21. Nxc6 {[%clk 0:00:57.2]} 21... Nxe3 {[%clk 0:00:12.6]} 22. Qxe3 {[%clk
0:00:49.9]} 22... Raf8 {[%clk 0:00:11]} 23. Nd4 {[%clk 0:00:48.1]} 23... Qf6
{[%clk 0:00:04.6]} 24. Nxf5 {[%clk 0:00:47.8]} 24... Qxf5 {[%clk 0:00:05.3]} 25.
Qd3 {[%clk 0:00:46.1]} 25... Qg5 {[%clk 0:00:03.7]} 26. Qe3 {[%clk 0:00:38.7]}
26... Qg6 {[%clk 0:00:03.3]} 27. g3 {[%clk 0:00:27.5]} 27... h6 {[%clk
0:00:03.6]} 28. Re1 {[%clk 0:00:20.2]} 28... Rf5 {[%clk 0:00:03.6]} 29. Qe4
{[%clk 0:00:19.7]} 29... Qf7 {[%clk 0:00:03.9]} 30. Qd5 {[%clk 0:00:19.2]} 30...
Rxf2 {[%clk 0:00:03.9]} 31. Qxf7+ {[%clk 0:00:17.2]} 31... Rxf7 {[%clk
0:00:03.9]} 32. Rf2 {[%clk 0:00:16.3]} 32... Re7 {[%clk 0:00:02.4]} 33. Kg2
{[%clk 0:00:16.2]} 33... Rd7 {[%clk 0:00:02]} 34. Ra2 {[%clk 0:00:16.4]} 34...
e4 {[%clk 0:00:01.3]} 35. Rxe4 {[%clk 0:00:16.2]} 35... Rf7 {[%clk 0:00:01.3]}
36. Rxa6 {[%clk 0:00:15.3]} 36... Rf5 {[%clk 0:00:02]} 37. Rxd6 {[%clk
0:00:14.8]} 37... cxd6 {[%clk 0:00:01.6]} 38. Rd4 {[%clk 0:00:15]} 38... Rf6
{[%clk 0:00:01.6]} 39. b5 {[%clk 0:00:14.9]} 39... Kf7 {[%clk 0:00:01.6]} 40. b6
{[%clk 0:00:14.9]} 40... Rf5 {[%clk 0:00:02.1]} 41. Rb4 {[%clk 0:00:14.4]} 1-0